bitfinex-derivatives/quotes_SOLF0:USTF0_20240930
["timestamp","ask_amount","ask_price","bid_price","bid_amount"]
[1727697486844,0.12502,155.57,155.55,12.35]
[1727697488455,0.12502,155.57,155.55,15.564]
[1727697488859,0.12502,155.57,155.55,12.35]
[1727697489855,3.213,155.61,155.55,12.35]
[1727697490058,0.12502,155.63,155.58,12.35]
[1727697490756,0.12502,155.63,155.56,12.35]
[1727697490943,0.12502,155.63,155.54,12.35]
[1727697492655,3.2137,155.58,155.55,3.2141]
[1727697493761,0.12502,155.63,155.55,3.2141]
[1727697493965,3.2135,155.59,155.56,15.5639]
[1727697494165,0.12502,155.63,155.58,12.35]
[1727697494565,0.12502,155.63,155.6,12.35]
[1727697496163,0.12502,155.63,155.6,15.563]
[1727697496360,0.12502,155.63,155.6,12.35]
[1727697496859,0.12502,155.63,155.61,3.2127]
[1727697497055,0.12502,155.63,155.59,12.35]
[1727697497465,3.33772,155.63,155.59,15.5632]
[1727697497853,0.12502,155.63,155.59,15.5632]
[1727697498664,3.2127,155.62,155.59,12.35]
[1727697499868,3.2127,155.62,155.59,15.5633]
[1727697500366,0.12502,155.63,155.59,15.5633]
[1727697500664,0.12502,155.63,155.62,12.35]
[1727697501159,3.33772,155.63,155.61,12.35]
[1727697501363,0.12502,155.63,155.61,12.35]
[1727697502059,1.07285299,155.65,155.61,15.5629]
[1727697502060,3.2125,155.64,155.61,15.5629]
[1727697502265,3.2125,155.64,155.61,12.35]
[1727697502471,1.07285299,155.65,155.61,12.35]
[1727697502658,3.2127,155.63,155.61,12.35]
[1727697502961,1.07285299,155.65,155.61,12.35]
[1727697503157,3.2126,155.63,155.61,12.35]
[1727697504667,1.07285299,155.65,155.61,12.35]
[1727697505359,3.2125,155.64,155.61,12.35]
[1727697505757,1.07285299,155.65,155.61,12.35]
[1727697505971,33.21426841,155.63,155.61,12.35]
[1727697506565,30.00166841,155.63,155.61,12.35]
[1727697506764,3.2127,155.62,155.61,12.35]
[1727697507159,30.00166841,155.63,155.61,12.35]
[1727697507366,33.21426841,155.63,155.61,12.35]
[1727697509764,3.2127,155.62,155.61,12.35]
[1727697509965,30.00166841,155.63,155.61,12.35]
[1727697511072,3.2127,155.62,155.61,12.35]
[1727697512962,30.00166841,155.63,155.61,12.35]
[1727697513162,33.21426841,155.63,155.61,12.35]
[1727697513362,33.21426841,155.63,155.61,15.5629]
[1727697513969,30.00166841,155.63,155.61,15.5629]
[1727697517465,1.07285299,155.65,155.61,12.35]
[1727697517662,1.07285299,155.65,155.63,12.35]
[1727697518069,4.28505299,155.65,155.63,12.35]
[1727697519068,3.2123,155.64,155.63,12.35]
[1727697519469,4.28515299,155.65,155.63,12.35]
[1727697519676,4.28515299,155.65,155.63,7.9]
[1727697523172,3.2123,155.64,155.63,7.9]
[1727697525778,4.28505299,155.65,155.63,7.9]
[1727697526173,1.07285299,155.65,155.63,7.9]
[1727697526678,3.2123,155.64,155.63,7.9]
[1727697528571,1.07285299,155.65,155.58,85.00960462]
[1727697528785,1.07285299,155.65,155.59,7.37773845]
[1727697528980,1.07285299,155.65,155.63,7.9]
[1727697529577,1.07285299,155.65,155.64,7.9]
[1727697530778,3.2123,155.64,155.63,7.9]
[1727697532074,3.2123,155.64,155.59,3.2133]
[1727697532075,1.07285299,155.65,155.57,3.41164338]
[1727697532377,3.2133,155.6,155.57,6.62524338]
[1727697532569,1.07285299,155.65,155.57,3.41164338]
[1727697532884,3.2131,155.61,155.58,3.2135]
[1727697533276,3.213,155.61,155.59,3.2132]
[1727697533477,3.213,155.61,155.57,3.41164338]
[1727697533983,3.2132,155.6,155.57,0.12502]
[1727697534184,3.2132,155.6,155.59,7.9]
[1727697534681,3.2125,155.64,155.59,7.9]
[1727697534881,3.2125,155.64,155.61,7.9]
[1727697535682,3.2125,155.64,155.61,11.1129]
[1727697536675,3.2128,155.62,155.59,3.2133]
[1727697536903,1.3371,155.63,155.59,7.9]
[1727697537384,1.3371,155.63,155.62,7.9]
[1727697539590,3.33736004,155.64,155.62,7.9]
[1727697539787,3.33736004,155.64,155.63,7.9]
[1727697540087,3.33736004,155.64,155.63,11.1125]
[1727697540285,3.33736004,155.64,155.63,7.9]
[1727697540483,3.33736004,155.64,155.63,11.1125]
[1727697540887,3.33736004,155.64,155.58,7.38566074]
[1727697541092,3.33736004,155.64,155.62,7.9]
[1727697542092,3.33736004,155.64,155.63,11.1125]
[1727697545507,8.0757082,155.65,155.64,3.2123]
[1727697545703,8.0757082,155.65,155.64,11.1123]
[1727697545910,1.08477624,155.66,155.64,7.9]
[1727697546096,1.08477624,155.66,155.65,3.2121]
[1727697551902,1.08477624,155.66,155.6,11.81250109]
[1727697552118,1.08477624,155.66,155.62,7.9]
[1727697552814,1.08477624,155.66,155.63,3.2125]
[1727697553011,1.08477624,155.66,155.62,7.9]
[1727697553611,1.08477624,155.66,155.63,3.2124]
[1727697553814,3.2121,155.65,155.57,3.37050434]
[1727697554011,3.2121,155.65,155.62,7.9]
[1727697554520,4.29677624,155.66,155.62,11.1126]
[1727697554720,4.29677624,155.66,155.62,7.9]
[1727697555809,1.08477624,155.66,155.62,7.9]
[1727697556209,1.08477624,155.66,155.63,3.2124]
[1727697556415,1.08477624,155.66,155.64,7.9]
[1727697556808,1.08477624,155.66,155.64,11.1123]
[1727697557813,1.08477624,155.66,155.64,7.9]
[1727697558322,1.08477624,155.66,155.63,3.2124]
[1727697558519,4.29677624,155.66,155.64,7.9]
[1727697560316,4.29677624,155.66,155.63,3.2124]
[1727697560523,4.29677624,155.66,155.63,11.1124]
[1727697562118,1.08477624,155.66,155.65,11.1121]
[1727697562324,5.22081519,155.68,155.65,7.9]
[1727697562618,5.22081519,155.68,155.58,21.2304801]
[1727697562619,30.49174874,155.73,155.68,7.9]
[1727697562829,30.49174874,155.73,155.69,3.2113]
[1727697564318,30.49174874,155.73,155.7,3.2111]
[1727697564627,30.49174874,155.73,155.7,11.1111]
[1727697568028,30.49174874,155.73,155.7,3.2111]
[1727697568221,30.49174874,155.73,155.7,11.1111]
[1727697568419,30.49174874,155.73,155.67,5.98207338]
[1727697568618,33.70234874,155.73,155.69,7.9]
[1727697569031,30.49174874,155.73,155.69,7.9]
[1727697569228,33.70224874,155.73,155.69,7.9]
[1727697571618,33.70224874,155.73,155.7,7.9]
[1727697572031,30.49174874,155.73,155.7,7.9]
[1727697572527,30.49174874,155.73,155.7,3.2111]
[1727697572732,30.49174874,155.73,155.7,11.1111]
[1727697575629,30.49174874,155.73,155.7,7.9]
[1727697576134,33.70234874,155.73,155.7,7.9]
[1727697577133,30.49174874,155.73,155.69,7.9]
[1727697577532,38.39174874,155.73,155.67,7.9]
[1727697577832,3.2113,155.69,155.66,7.9]
[1727697578133,7.9,155.7,155.64,7.9]
[1727697578343,3.2118,155.67,155.64,7.9]
[1727697578729,3.2118,155.67,155.63,11.23742]
[1727697579235,3.2118,155.67,155.64,3.2123]
[1727697579831,3.2118,155.67,155.63,8.02502]
[1727697580040,3.2118,155.67,155.63,11.23742]
[1727697580538,3.2119,155.66,155.63,11.23742]
[1727697581644,3.2118,155.67,155.64,7.9]
[1727697581849,2.6262,155.68,155.65,7.9]
[1727697582050,5.1994362,155.71,155.66,7.9]
[1727697582237,5.1994362,155.71,155.69,7.9]
[1727697583039,5.1994362,155.71,155.67,3.2116]
[1727697583238,5.1994362,155.71,155.68,7.9]
[1727697583438,8.4104362,155.71,155.68,7.9]
[1727697584933,3.2112,155.7,155.68,7.9]
[1727697586836,3.2112,155.7,155.66,11.1119]
[1727697587742,3.2112,155.7,155.66,7.9]
[1727697588544,3.2112,155.7,155.66,11.1119]
[1727697590046,3.2113,155.69,155.66,11.1119]
[1727697590647,3.2113,155.69,155.66,7.9]
[1727697594350,13.0994362,155.71,155.66,7.9]
[1727697594657,13.0994362,155.71,155.65,7.9]
[1727697594658,7.9,155.7,155.65,7.9]
[1727697595360,3.2116,155.68,155.65,11.1121]
[1727697595755,3.2116,155.68,155.65,7.9]
[1727697596153,3.2116,155.68,155.64,11.1122]
[1727697597356,7.9,155.69,155.64,11.1122]
[1727697597357,3.2117,155.67,155.64,11.1122]
[1727697598349,7.9,155.69,155.64,7.9]
[1727697599252,3.2116,155.68,155.64,11.1123]
[1727697599956,3.2117,155.67,155.64,11.1123]
[1727697600661,3.2119,155.66,155.63,8.02502]
[1727697601053,3.2119,155.66,155.63,0.12502]
[1727697602466,5.1994362,155.71,155.63,8.02502]
[1727697602665,5.1994362,155.71,155.63,0.12502]
[1727697602854,5.1994362,155.71,155.67,7.9]
[1727697603257,3.2114,155.69,155.67,7.9]
[1727697603455,5.1994362,155.71,155.65,3.212]
[1727697603456,13.0994362,155.71,155.65,3.212]
[1727697603660,13.0994362,155.71,155.63,0.12502]
[1727697603661,7.9,155.69,155.64,7.9]
[1727697603864,5.1994362,155.71,155.63,11.23742]
[1727697603865,3.2121,155.66,155.63,11.23742]
[1727697604061,7.9,155.68,155.63,8.02502]
[1727697604764,7.9,155.64,155.59,11.84922312]
[1727697604967,7.9,155.6,155.59,11.84922312]
[1727697605266,7.9,155.6,155.58,11.8435731]
[1727697605967,3.2134,155.59,155.58,11.8435731]
[1727697606369,11.1134,155.59,155.58,11.8435731]
[1727697607063,7.9,155.59,155.57,0.12502]
[1727697607269,7.9,155.59,155.56,14.80446638]
[1727697607479,7.9,155.57,155.56,14.80446638]
[1727697608276,11.1138,155.57,155.56,14.80446638]
[1727697608769,11.1138,155.57,155.56,12.75506638]
[1727697609567,3.2138,155.57,155.56,12.75506638]
[1727697609779,1.45982,155.63,155.56,20.65506638]
[1727697610170,3.2131,155.61,155.56,12.75506638]
[1727697610370,3.2131,155.61,155.58,7.9]
[1727697610765,9.35982,155.63,155.58,7.9]
[1727697610961,3.2133,155.6,155.58,7.9]
[1727697611676,3.2133,155.6,155.56,3.2139]
[1727697611867,3.2133,155.6,155.55,12.35]
[1727697612170,3.2133,155.6,155.53,2.6555]
[1727697612372,3.2133,155.6,155.55,12.35]
[1727697612570,3.2133,155.6,155.56,3.2138]
[1727697612974,3.2134,155.59,155.55,12.35]
[1727697613162,3.2134,155.59,155.55,15.564]
[1727697613363,3.213,155.61,155.55,12.35]
[1727697613566,1.45982,155.63,155.55,12.35]
[1727697613773,13.80982,155.63,155.54,3.2143]
[1727697613973,13.80982,155.63,155.53,15.0055]
[1727697614474,3.2141,155.56,155.53,2.6555]
[1727697614769,12.35,155.59,155.51,0.12502]
[1727697615571,3.2148,155.53,155.51,0.12502]
[1727697616063,3.2148,155.52,155.51,0.12502]
[1727697619383,13.5909,155.59,155.51,0.12502]
[1727697619573,1.3144,155.58,155.51,0.12502]
[1727697620178,3.2148,155.53,155.51,0.12502]
[1727697620379,1.3144,155.58,155.51,0.12502]
[1727697620782,1.3144,155.58,155.51,3.33992]
[1727697621084,1.3144,155.58,155.51,0.12502]
[1727697621280,3.2147,155.53,155.51,0.12502]
[1727697621476,1.3144,155.58,155.51,0.12502]
[1727697621679,12.35,155.57,155.51,0.12502]
[1727697621883,3.2148,155.52,155.51,0.12502]
[1727697623279,12.35,155.57,155.51,0.12502]
[1727697623484,1.3144,155.58,155.51,3.34002]
[1727697623786,1.3144,155.58,155.51,0.12502]
[1727697624084,0.12502,155.63,155.54,3.2144]
[1727697624085,12.47502,155.63,155.54,3.2144]
[1727697624287,13.83202,155.63,155.54,3.2144]
[1727697624473,3.2139,155.57,155.54,3.2144]
[1727697626085,13.83202,155.63,155.53,12.35]
[1727697626279,13.83202,155.63,155.51,0.12502]
[1727697626280,3.2143,155.55,155.51,0.12502]
[1727697626781,3.2136,155.58,155.51,0.12502]
[1727697626972,12.35,155.61,155.51,0.12502]
[1727697627178,12.35,155.61,155.51,3.33992]
[1727697627479,12.35,155.61,155.51,0.12502]
[1727697628187,3.2144,155.54,155.51,0.12502]
[1727697628386,12.35,155.61,155.52,3.2148]
[1727697628582,12.35,155.61,155.51,0.12502]
[1727697628981,3.2141,155.56,155.53,3.2145]
[1727697630184,12.35,155.61,155.51,0.12502]
[1727697630579,3.2143,155.55,155.51,3.33982]
[1727697631290,3.2143,155.55,155.51,0.12502]
[1727697631489,12.35,155.61,155.51,0.12502]
[1727697632084,3.2145,155.54,155.51,3.33992]
[1727697632284,12.35,155.59,155.51,0.12502]
[1727697632783,3.2147,155.53,155.51,0.12502]
[1727697632981,12.35,155.59,155.51,0.12502]
[1727697633381,3.2148,155.53,155.51,0.12502]
[1727697633575,12.35,155.57,155.51,0.12502]
[1727697633978,3.2148,155.52,155.51,0.12502]
[1727697636084,12.35,155.53,155.42,1.2651]
[1727697636290,3.2156,155.48,155.45,3.34112]
[1727697636589,12.35,155.53,155.45,0.12502]
[1727697636989,12.35,155.53,155.47,3.2157]
[1727697637488,3.2154,155.49,155.46,3.216]
[1727697638086,12.35,155.55,155.45,0.12502]
[1727697638702,3.2145,155.54,155.51,3.215]
[1727697638891,1.235,155.56,155.48,12.35]
[1727697639391,3.2143,155.55,155.52,3.2148]
[1727697639800,1.235,155.56,155.49,1.2984]
[1727697640010,0.12502,155.57,155.52,12.35]
[1727697640393,0.12502,155.57,155.56,3.214]
[1727697640691,0.12502,155.57,155.52,12.35]
[1727697641085,0.12502,155.57,155.55,3.2141]
[1727697641282,0.12502,155.57,155.52,12.35]
[1727697641490,0.12502,155.57,155.5,2.6205]
[1727697641491,0.12502,155.57,155.53,3.2145]
[1727697641698,3.33882,155.57,155.53,3.2145]
[1727697641882,0.12502,155.57,155.5,14.9705]
[1727697642083,3.2142,155.55,155.5,14.9705]
[1727697642288,0.12502,155.57,155.5,1.2674]
[1727697642489,0.12502,155.57,155.51,3.2148]
[1727697642786,3.2143,155.55,155.5,1.2674]
[1727697642996,0.12502,155.57,155.52,3.2148]
[1727697644397,3.2142,155.55,155.52,3.2148]
[1727697645584,0.12502,155.57,155.52,3.2148]
[1727697645787,3.2141,155.56,155.52,3.2148]
[1727697646693,0.12502,155.57,155.52,3.2148]
[1727697646892,3.2142,155.55,155.52,3.2148]
[1727697650387,0.12502,155.57,155.49,1.2984]
[1727697651396,0.12502,155.57,155.47,12.35]
[1727697651397,12.35,155.56,155.47,12.35]
[1727697651606,3.2151,155.51,155.48,3.2155]
[1727697652700,3.2156,155.49,155.46,4.478]
[1727697653594,3.2156,155.49,155.47,3.2158]
[1727697653790,3.2154,155.5,155.47,3.2158]
[1727697654501,3.2154,155.49,155.47,3.2158]
[1727697654903,3.2154,155.49,155.46,4.478]
[1727697655199,3.2157,155.48,155.45,1.48322]
[1727697655390,3.2157,155.48,155.46,3.216]
[1727697655700,3.2157,155.48,155.45,0.12502]
[1727697656097,3.2155,155.49,155.46,3.216]
[1727697658999,2.6408,155.53,155.46,3.216]
[1727697659702,3.2156,155.49,155.46,3.216]
[1727697659899,2.6408,155.53,155.46,3.216]
[1727697660196,3.2156,155.49,155.46,3.216]
[1727697660505,2.6408,155.53,155.46,3.216]
[1727697660702,3.2156,155.49,155.46,3.216]
[1727697660897,12.35,155.52,155.45,0.12502]
[1727697661105,12.35,155.52,155.47,3.2157]
[1727697661302,12.35,155.52,155.45,0.12502]
[1727697661797,3.2159,155.47,155.45,0.12502]
[1727697661998,12.35,155.5,155.45,0.12502]
[1727697662305,12.35,155.48,155.45,0.12502]
[1727697662508,3.216,155.47,155.45,0.12502]
[1727697662896,12.35,155.5,155.45,0.12502]
[1727697663803,3.2161,155.46,155.45,0.12502]
[1727697667801,12.35,155.5,155.45,0.12502]
[1727697668398,3.2161,155.46,155.45,0.12502]
[1727697671105,3.2159,155.47,155.45,0.12502]
[1727697671502,7.91,155.49,155.45,0.12502]
[1727697671702,3.2158,155.48,155.45,3.34122]
[1727697671903,7.91,155.49,155.45,3.34122]
[1727697672299,1.2802,155.52,155.46,7.91]
[1727697672505,10.5508,155.53,155.47,7.91]
[1727697672811,7.91,155.51,155.47,7.91]
[1727697673009,3.2154,155.5,155.47,3.2158]
[1727697674205,3.2155,155.49,155.46,3.2159]
[1727697675806,7.91,155.5,155.45,0.12502]
[1727697676103,3.2157,155.48,155.45,3.34112]
[1727697677409,3.2159,155.47,155.45,0.12502]
[1727697678012,11.1257,155.48,155.45,0.12502]
[1727697678503,7.91,155.48,155.45,0.12502]
[1727697678697,3.216,155.47,155.45,0.12502]
[1727697678909,7.91,155.47,155.45,0.12502]
[1727697679302,3.2159,155.47,155.45,0.12502]
[1727697679912,3.2158,155.48,155.45,0.12502]
[1727697680409,2.6408,155.53,155.45,0.12502]
[1727697680609,1.354,155.56,155.51,7.91]
[1727697680810,0.12502,155.57,155.53,7.91]
[1727697681309,3.33892,155.57,155.53,7.91]
[1727697682307,8.03502,155.57,155.46,1.3603]
[1727697682506,3.2142,155.55,155.5,7.91]
[1727697682901,3.2142,155.55,155.51,3.215]
[1727697683609,3.2144,155.54,155.5,3.2152]
[1727697683804,3.2144,155.54,155.46,20.72328987]
[1727697683999,12.47502,155.57,155.47,6.0026661]
[1727697684216,3.2142,155.55,155.48,12.35]
[1727697684511,0.12502,155.57,155.48,12.35]
[1727697685513,0.12502,155.57,155.51,12.35]
[1727697685907,0.12502,155.57,155.54,3.2142]
[1727697686215,0.12502,155.57,155.51,12.35]
[1727697686614,0.12502,155.57,155.53,3.2144]
[1727697686812,0.12502,155.57,155.53,12.35]
[1727697687109,38.17415636,155.55,155.54,3.2144]
[1727697690518,38.17415636,155.55,155.53,12.35]
[1727697690718,38.17415636,155.55,155.52,3.2148]
[1727697691104,38.17415636,155.55,155.51,12.35]
[1727697691507,38.17415636,155.55,155.53,3.2146]
[1727697692617,38.17415636,155.55,155.51,3.215]
[1727697692921,38.17415636,155.55,155.49,2.5147]
[1727697693411,41.38845636,155.55,155.49,2.5147]
[1727697694210,38.17415636,155.55,155.52,3.2147]
[1727697695916,41.38835636,155.55,155.52,3.2147]
[1727697697123,38.17415636,155.55,155.52,3.2147]
[1727697698224,38.17415636,155.55,155.5,12.35]
[1727697698225,3.2144,155.54,155.51,3.215]
[1727697698423,38.17415636,155.55,155.48,12.35]
[1727697698824,3.2146,155.53,155.5,3.2152]
[1727697699124,38.17415636,155.55,155.48,12.35]
[1727697700024,1.3009,155.54,155.48,12.35]
[1727697700414,1.3009,155.54,155.49,3.2153]
[1727697700621,1.3009,155.54,155.45,15.08062]
[1727697701022,3.215,155.52,155.48,3.2155]
[1727697701533,1.3009,155.54,155.48,3.2155]
[1727697701920,1.3009,155.54,155.45,15.08062]
[1727697702121,1.3009,155.54,155.49,3.2153]
[1727697702420,38.17415636,155.55,155.48,15.52144223]
[1727697702627,38.17415636,155.55,155.49,3.2153]
[1727697703522,3.215,155.52,155.49,11.1153]
[1727697703718,3.215,155.52,155.49,7.9]
[1727697703931,46.07415636,155.55,155.48,11.1155]
[1727697705321,7.9,155.53,155.47,3.2157]
[1727697705624,7.9,155.53,155.48,7.9]
[1727697705824,3.2151,155.51,155.48,7.9]
[1727697706428,7.9,155.53,155.48,7.9]
[1727697706429,3.2154,155.5,155.48,7.9]
[1727697707324,7.9,155.52,155.47,7.9]
[1727697707523,1.2691,155.51,155.47,7.9]
[1727697707727,3.2156,155.49,155.47,7.9]
[1727697708032,1.2691,155.51,155.47,7.9]
[1727697708229,1.2691,155.51,155.45,0.12502]
[1727697708230,9.1691,155.51,155.45,8.02502]
[1727697708424,3.216,155.47,155.45,0.12502]
[1727697708726,7.9,155.49,155.45,0.12502]
[1727697709324,3.2161,155.46,155.45,0.12502]
[1727697709828,3.2159,155.47,155.45,0.12502]
[1727697710030,7.9,155.5,155.45,0.12502]
[1727697710531,3.2158,155.48,155.45,3.34122]
[1727697712032,7.9,155.5,155.45,0.12502]
[1727697712335,3.2159,155.47,155.45,0.12502]
[1727697718340,7.9,155.49,155.45,0.12502]
[1727697718931,11.1161,155.46,155.45,0.12502]
[1727697720135,3.2161,155.46,155.45,0.12502]
[1727697720936,11.1161,155.46,155.45,0.12502]
[1727697726342,11.1161,155.46,155.4,14.92169082]
[1727697726343,3.2169,155.43,155.4,14.92169082]
[1727697726538,7.9,155.45,155.4,14.92169082]
[1727697726744,7.9,155.45,155.4,11.1172]
[1727697727247,3.217,155.42,155.4,11.1172]
[1727697727442,7.9,155.42,155.39,0.12502]
[1727697728133,3.2173,155.4,155.39,0.12502]
[1727697729236,3.217,155.42,155.39,8.02502]
[1727697729441,1.275,155.44,155.41,7.9]
[1727697730132,1.275,155.44,155.42,7.9]
[1727697730337,56.5732854,155.46,155.42,7.9]
[1727697730840,56.5732854,155.46,155.44,7.9]
[1727697731041,1.3339,155.5,155.45,7.9]
[1727697731436,3.2157,155.48,155.45,7.9]
[1727697732348,3.2157,155.48,155.45,11.1162]
[1727697734441,9.2339,155.5,155.42,6.00618619]
[1727697734647,9.2339,155.5,155.44,7.9]
[1727697735145,3.2158,155.48,155.45,3.2162]
[1727697736048,9.2339,155.5,155.44,7.9]
[1727697736243,7.9,155.47,155.4,8.15814743]
[1727697736438,7.9,155.47,155.41,6.00849719]
[1727697736640,3.2163,155.45,155.42,3.2168]
[1727697737245,3.2163,155.45,155.42,11.1168]
[1727697737650,3.23680823,155.49,155.43,3.2166]
[1727697737845,3.2162,155.46,155.43,3.2166]
[1727697738244,3.2163,155.45,155.43,3.2166]
[1727697738741,7.9,155.47,155.42,11.1167]
[1727697739143,3.23680823,155.49,155.45,3.2162]
[1727697739342,1.3339,155.5,155.46,7.9]
[1727697740147,3.2157,155.48,155.46,7.9]
[1727697740852,3.216,155.47,155.45,7.9]
[1727697742259,3.216,155.47,155.45,11.1163]
[1727697742453,3.216,155.47,155.3,229.0]
[1727697742454,3.2167,155.43,155.3,229.0]
[1727697742658,7.9,155.47,155.41,7.9]
[1727697742853,7.9,155.47,155.42,3.2168]
[1727697743054,3.2166,155.44,155.41,7.9]
[1727697743456,3.2166,155.44,155.41,11.117]
[1727697744360,3.2167,155.43,155.41,3.217]
[1727697745353,3.2167,155.43,155.4,3.2172]
[1727697746054,1.3484,155.48,155.42,7.9]
[1727697746251,9.2484,155.48,155.42,7.9]
[1727697746652,7.9,155.46,155.42,7.9]
[1727697746853,7.9,155.46,155.41,3.2169]
[1727697747455,3.2166,155.44,155.41,3.2169]
[1727697747657,7.9,155.46,155.41,3.2169]
[1727697748153,3.2165,155.44,155.41,3.2169]
[1727697749858,3.2163,155.45,155.42,11.1168]
[1727697750661,1.3339,155.5,155.39,0.12502]
[1727697750662,0.12502,155.51,155.44,7.9]
[1727697750854,0.12502,155.51,155.48,7.9]
[1727697751361,3.2153,155.5,155.48,7.9]
[1727697751563,3.2153,155.5,155.42,7.27074245]
[1727697751564,0.12502,155.51,155.49,7.9]
[1727697752561,0.12502,155.51,155.49,11.1153]
[1727697752753,0.12502,155.51,155.48,7.9]
[1727697752954,3.34022,155.51,155.48,11.1155]
[1727697753670,3.34022,155.51,155.48,3.2155]
[1727697755069,3.34022,155.51,155.46,12.35]
[1727697755258,0.12502,155.51,155.46,12.35]
[1727697755655,0.12502,155.51,155.43,13.7001]
[1727697756267,3.2156,155.49,155.45,3.2162]
[1727697756460,3.2156,155.49,155.45,12.35]
[1727697756861,3.2156,155.49,155.46,3.2159]
[1727697757263,0.12502,155.51,155.45,12.35]
[1727697758069,0.12502,155.51,155.47,3.2157]
[1727697758462,0.12502,155.51,155.45,12.35]
[1727697758667,3.2154,155.49,155.46,3.216]
[1727697758963,0.12502,155.51,155.45,12.35]
[1727697759370,3.2157,155.48,155.45,15.5661]
[1727697759574,0.12502,155.51,155.45,12.35]
[1727697759763,3.2155,155.49,155.46,3.2159]
[1727697760669,3.2155,155.49,155.45,12.35]
[1727697760872,3.2153,155.5,155.47,3.2158]
[1727697762371,3.2154,155.49,155.47,3.2158]
[1727697762567,0.12502,155.51,155.45,12.35]
[1727697762768,0.12502,155.51,155.46,3.216]
[1727697762969,3.2156,155.49,155.46,3.216]
[1727697763270,0.12502,155.51,155.46,3.216]
[1727697764071,0.12502,155.51,155.45,3.2161]
[1727697765471,3.2158,155.48,155.45,3.2161]
[1727697766174,3.2155,155.49,155.46,3.216]
[1727697766365,0.12502,155.51,155.43,13.7001]
[1727697766572,0.12502,155.51,155.44,6.01607819]
[1727697766770,0.12502,155.51,155.45,9.23217819]
[1727697767072,0.12502,155.51,155.45,3.2161]
[1727697767868,3.2158,155.48,155.45,3.2161]
[1727697768672,62.75787163,155.48,155.45,3.2161]
[1727697769075,3.2158,155.47,155.45,3.2161]
[1727697771371,59.54207163,155.48,155.45,3.2161]
[1727697771979,59.54207163,155.48,155.44,3.2164]
[1727697772179,3.2159,155.47,155.45,6.01979533]
[1727697772380,3.2159,155.47,155.43,13.7001]
[1727697772572,3.2159,155.47,155.44,6.02028612]
[1727697772783,3.2159,155.47,155.45,6.02028612]
[1727697773079,3.2159,155.47,155.43,13.7001]
[1727697773278,3.2159,155.47,155.45,3.2163]
[1727697774377,59.54207163,155.48,155.46,3.216]
[1727697775378,62.75767163,155.48,155.46,3.216]
[1727697775578,62.75767163,155.48,155.46,11.126]
[1727697777278,3.2158,155.47,155.44,11.1263]
[1727697777475,3.2158,155.47,155.45,6.0204183]
[1727697777682,3.2158,155.47,155.44,7.91]
[1727697777884,3.2162,155.46,155.43,3.2165]
[1727697778089,3.2162,155.46,155.44,6.02047983]
[1727697778282,3.2162,155.46,155.45,6.02047983]
[1727697778684,3.2159,155.47,155.45,9.23677983]
[1727697778887,59.54207163,155.48,155.46,7.91]
[1727697779487,59.54207163,155.48,155.47,3.2158]
[1727697779792,48.28637163,155.48,155.47,3.2158]
[1727697779988,29.39534643,155.5,155.49,3.2154]
[1727697780189,30.96806504,155.51,155.49,7.91]
[1727697780695,30.96806504,155.51,155.5,3.2152]